fUSD/lending_fUSD_20250202
["ID","MTS","AMOUNT","RATE_DAILY","PERIOD"]
[351290488,1738506616474,-500.0,0.00011506,2]
[351290489,1738506616497,-500.0,0.00011506,2]
[351290490,1738506616521,-500.0,0.00011506,2]
[351290491,1738506616545,-500.0,0.00011506,2]
[351290492,1738506616569,-500.0,0.00011506,2]
[351290493,1738506616593,-450.34,0.00011506,2]
[351290494,1738506616618,-512.92,0.00011506,2]
[351290495,1738506616641,-500.0,0.00011506,2]
[351290496,1738506616667,-500.0,0.00011506,2]
[351290497,1738506616692,-1447.89,0.00011506,2]
[351290498,1738506616716,-1735.29,0.00011506,2]
[351290499,1738506616740,-2420.33,0.00011506,2]
[351290500,1738506616765,-277.43,0.00011506,2]
[351290501,1738506616789,-160.94,0.00011506,2]
[351290502,1738506616814,-500.0,0.00011506,2]
[351290503,1738506616837,-500.0,0.00011506,2]
[351290504,1738506616862,-500.0,0.00011506,2]
[351290505,1738506616887,-500.0,0.00011506,2]
[351290506,1738506616920,-500.0,0.00011506,2]
[351290507,1738506616951,-500.0,0.00011506,2]
[351290508,1738506616977,-500.0,0.00011506,2]
[351290509,1738506617004,-500.0,0.00011506,2]
[351290510,1738506617028,-242.31,0.00011506,2]
[351290511,1738506617051,-500.0,0.00011506,2]
[351290512,1738506617077,-799.65,0.00011506,2]
[351290513,1738506617100,-500.0,0.00011506,2]
[351290514,1738506617123,-624.16,0.00011506,2]
[351290515,1738506617149,-1270.8,0.00011506,2]
[351290516,1738506617175,-500.0,0.00011506,2]
[351290517,1738506617198,-500.0,0.00011506,2]
[351290518,1738506617222,-500.0,0.00011506,2]
[351290519,1738506617247,-168.22,0.00011506,2]
[351290520,1738506617466,-500.0,0.00011506,2]
[351290521,1738506617490,-500.0,0.00011506,2]
[351290522,1738506617515,-500.0,0.00011506,2]
[351290523,1738506617539,-500.0,0.00011506,2]
[351290524,1738506617563,-500.0,0.00011506,2]
[351290525,1738506617588,-282.92,0.00011506,2]
[351290526,1738506617613,-250.58,0.00011506,2]
[351290527,1738506617638,-1134.07,0.00011506,2]
[351290528,1738506617666,-500.0,0.00011506,2]
[351290529,1738506617693,-192.956098,0.00011506,2]
[351290530,1738506617719,-500.0,0.00011506,2]
[351290531,1738506617745,-293.39,0.00011506,2]
[351290532,1738506617770,-244.2,0.00011506,2]
[351290533,1738506617795,-500.0,0.00011506,2]
[351290534,1738506617822,-249.229309,0.00011506,2]
[351290535,1738506617847,-500.0,0.00011506,2]
[351290536,1738506617873,-994.5,0.00011506,2]
[351290537,1738506617900,-289.3,0.00011506,2]
[351290538,1738506617933,-500.0,0.00011506,2]
[351290539,1738506617958,-500.0,0.00011506,2]
[351290540,1738506617986,-500.0,0.00011506,2]
[351290541,1738506618013,-500.0,0.00011506,2]
[351290542,1738506618039,-500.0,0.00011506,2]
[351290543,1738506618066,-500.0,0.00011506,2]
[351290544,1738506618092,-500.0,0.00011506,2]
[351290545,1738506618116,-512.38,0.00011506,2]
[351290546,1738506618142,-1228.88,0.00011506,2]
[351290547,1738506618169,-2271.2,0.00011506,2]
[351290548,1738506618195,-500.0,0.00011506,2]
[351290549,1738506618219,-536.3,0.00011506,2]
[351290550,1738506618244,-500.0,0.00011506,2]
[351290551,1738506618270,-559.21,0.00011506,2]
[351290552,1738506618294,-500.0,0.00011506,2]
[351290553,1738506618319,-500.0,0.00011506,2]
[351290554,1738506618345,-580.18,0.00011506,2]
[351290555,1738506618370,-303.84,0.00011506,2]
[351290556,1738506618404,-4077.82,0.00011506,2]
[351290557,1738506618429,-896.32,0.00011506,2]
[351290558,1738506618455,-697.23,0.00011506,2]
[351290559,1738506618481,-500.0,0.00011506,2]
[351290560,1738506618508,-1121.42,0.00011506,2]
[351290561,1738506618534,-500.0,0.00011506,2]
[351290562,1738506618559,-500.0,0.00011506,2]
[351290563,1738506618586,-500.0,0.00011506,2]
[351290564,1738506618611,-647.55,0.00011506,2]
[351290565,1738506618638,-500.0,0.00011506,2]
[351290566,1738506618665,-500.0,0.00011506,2]
[351290567,1738506618690,-583.58,0.00011506,2]
[351290568,1738506618718,-500.0,0.00011506,2]
[351290569,1738506618745,-500.0,0.00011506,2]
[351290570,1738506618772,-3116.64,0.00011506,2]
[351290571,1738506618798,-269.54,0.00011506,2]
[351290572,1738506618823,-304.1,0.00011506,2]
[351290573,1738506618848,-500.0,0.00011506,2]
[351290574,1738506618874,-500.0,0.00011506,2]
[351290575,1738506618900,-500.0,0.00011506,2]
[351290576,1738506618931,-5856.03,0.00011506,2]
[351290577,1738506618958,-500.0,0.00011506,2]
[351290578,1738506618984,-500.0,0.00011506,2]
[351290579,1738506619012,-1571.16,0.00011506,2]
[351290580,1738506619039,-469.98,0.00011506,2]
[351290581,1738506619065,-500.0,0.00011506,2]
[351290582,1738506619091,-500.0,0.00011506,2]
[351290583,1738506619117,-500.0,0.00011506,2]
[351290584,1738506619157,-360.23,0.00011506,2]
[351290585,1738506619190,-2437.04,0.00011506,2]
[351290586,1738506619221,-535.97,0.00011506,2]
[351290587,1738506619249,-500.0,0.00011506,2]
[351290588,1738506619275,-500.0,0.00011506,2]
[351290589,1738506619303,-500.0,0.00011506,2]
[351290590,1738506619332,-500.0,0.00011506,2]
[351290591,1738506619359,-500.0,0.00011506,2]
[351290592,1738506619385,-500.0,0.00011506,2]
[351290593,1738506619411,-500.0,0.00011506,2]
[351290594,1738506619439,-1216.64,0.00011506,2]
[351290595,1738506619468,-866.77,0.00011506,2]
[351290596,1738506619494,-1044.03,0.00011506,2]
[351290597,1738506619520,-500.0,0.00011506,2]
[351290598,1738506619549,-500.0,0.00011506,2]
[351290599,1738506619574,-500.0,0.00011506,2]
[351290600,1738506619601,-500.0,0.00011506,2]
[351290601,1738506619626,-500.0,0.00011506,2]
[351290602,1738506619654,-500.0,0.00011506,2]
[351290603,1738506619679,-500.0,0.00011506,2]
[351290604,1738506619704,-585.4,0.00011506,2]
[351290605,1738506619730,-500.0,0.00011506,2]
[351290606,1738506619757,-500.0,0.00011506,2]
[351290607,1738506619790,-733.59,0.00011506,2]
[351290608,1738506619816,-941.22,0.00011506,2]
[351290609,1738506619842,-500.0,0.00011506,2]
[351290610,1738506619868,-500.0,0.00011506,2]
[351290611,1738506619894,-500.0,0.00011506,2]
[351290612,1738506619922,-500.0,0.00011506,2]
[351290613,1738506619950,-649.28,0.00011506,2]
[351290614,1738506619976,-500.0,0.00011506,2]
[351290615,1738506620006,-1350.5,0.00011506,2]
[351290616,1738506620043,-800.62,0.00011506,2]
[351290617,1738506620081,-500.0,0.00011506,2]
[351290618,1738506620118,-500.0,0.00011506,2]
[351290619,1738506620155,-500.0,0.00011506,2]
[351290620,1738506620192,-500.0,0.00011506,2]
[351290621,1738506620227,-6658.58,0.00011506,2]
[351290622,1738506620262,-347.9819949,0.00011506,2]
[351290623,1738506620298,-500.0,0.00011506,2]
[351290624,1738506620334,-500.0,0.00011506,2]
[351290625,1738506620370,-500.0,0.00011506,2]
[351290626,1738506620406,-500.0,0.00011506,2]
[351290627,1738506620446,-500.0,0.00011506,2]
[351290628,1738506620482,-500.0,0.00011506,2]
[351290629,1738506620520,-500.0,0.00011506,2]
[351290630,1738506620557,-500.0,0.00011506,2]
[351290631,1738506620601,-500.0,0.00011506,2]
[351290632,1738506620638,-955.04,0.00011506,2]
[351290633,1738506620673,-594.87,0.00011506,2]
[351290634,1738506620710,-3582.4,0.00011506,2]
[351290635,1738506620746,-500.0,0.00011506,2]
[351290636,1738506620783,-500.0,0.00011506,2]
[351290637,1738506620821,-500.0,0.00011506,2]
[351290638,1738506620857,-500.0,0.00011506,2]
[351290639,1738506620894,-500.0,0.00011506,2]
[351290640,1738506620933,-603.39,0.00011506,2]
[351290641,1738506620969,-500.0,0.00011506,2]
[351290642,1738506621005,-7957.34,0.00011506,2]
[351290643,1738506621040,-500.0,0.00011506,2]
[351290644,1738506621077,-762.65,0.00011506,2]
[351290645,1738506621113,-500.0,0.00011506,2]
[351290646,1738506621148,-1262.26,0.00011506,2]
[351290647,1738506621183,-500.0,0.00011506,2]
[351290648,1738506621218,-530.19,0.00011506,2]
[351290649,1738506621254,-500.0,0.00011506,2]
[351290650,1738506621289,-500.0,0.00011506,2]
[351290651,1738506621325,-534.35,0.00011506,2]
[351290652,1738506621361,-606.59,0.00011506,2]
[351290653,1738506621396,-500.0,0.00011506,2]
[351290654,1738506621430,-500.0,0.00011506,2]
[351290655,1738506621465,-1593.86,0.00011506,2]
[351290656,1738506621504,-500.0,0.00011506,2]
[351290657,1738506621539,-500.0,0.00011506,2]
[351290658,1738506621573,-500.0,0.00011506,2]
[351290659,1738506621609,-2238.72,0.00011506,2]
[351290660,1738506621643,-1312.59,0.00011506,2]
[351290661,1738506621676,-500.0,0.00011506,2]
[351290662,1738506621711,-500.0,0.00011506,2]
[351290663,1738506621746,-704.04,0.00011506,2]
[351290664,1738506621783,-1575.06,0.00011506,2]
[351290665,1738506621818,-500.0,0.00011506,2]
[351290666,1738506621853,-7111.9,0.00011506,2]
[351290667,1738506622119,-800.0,0.000116,4]
[351290668,1738506622155,-454.49862287,0.00011642,3]
[351290669,1738506622193,-500.0,0.00011642,2]
[351290670,1738506622228,-500.0,0.00011642,2]
[351290671,1738506622262,-500.0,0.00011642,2]
[351290672,1738506622298,-319.46,0.00011642,2]
[351290673,1738506622333,-198.94,0.00011642,2]
[351290674,1738506622368,-286.22,0.00011642,2]
[351290675,1738506622403,-500.0,0.00011642,2]
[351290676,1738506622440,-273.42,0.00011642,2]
[351290677,1738506622477,-332.5,0.00011642,2]
[351290678,1738506622513,-500.0,0.00011642,2]
[351290679,1738506622548,-500.0,0.00011642,2]
[351290680,1738506622585,-500.0,0.00011642,2]
[351290681,1738506622621,-500.0,0.00011642,2]
[351290682,1738506622657,-492.88,0.00011642,2]
[351290683,1738506622696,-500.0,0.00011642,2]
[351290684,1738506622733,-500.0,0.00011642,2]
[351290685,1738506622770,-500.0,0.00011642,2]
[351290686,1738506622809,-541.68,0.00011642,2]
[351290687,1738506622844,-500.0,0.00011642,2]
[351290688,1738506622879,-407.08,0.00011642,2]
[351290689,1738506622917,-500.0,0.00011642,2]
[351290690,1738506622953,-500.0,0.00011642,2]
[351290691,1738506622989,-548.07,0.00011642,2]
[351290692,1738506623024,-500.0,0.00011642,2]
[351290693,1738506623060,-1169.34,0.00011642,2]
[351290694,1738506623095,-500.0,0.00011642,2]
[351290695,1738506623130,-500.0,0.00011642,2]
[351290696,1738506623168,-648.83,0.00011642,2]
[351290697,1738506623204,-507.49,0.00011642,2]
[351290698,1738506623238,-608.04,0.00011642,2]
[351290699,1738506623273,-500.0,0.00011642,2]
[351290700,1738506623306,-367.40869032,0.00011642,2]
[351290701,1738506623341,-500.0,0.00011642,2]
[351290702,1738506623376,-500.0,0.00011642,2]
[351290703,1738506623412,-500.0,0.00011642,2]
[351290704,1738506623448,-428.34,0.00011642,2]
[351290705,1738506623484,-277.91,0.00011642,2]
[351290706,1738506623519,-500.0,0.00011642,2]
[351290707,1738506623553,-260.42,0.00011642,2]
[351290708,1738506623587,-500.0,0.00011642,2]
[351290709,1738506623621,-434.85,0.00011642,2]
[351290710,1738506623654,-500.0,0.00011642,2]
[351290711,1738506623691,-228.69030877,0.00011642,2]
[351290712,1738506623725,-500.0,0.00011642,2]
[351290713,1738506623759,-500.0,0.00011642,2]
[351290714,1738506623793,-500.0,0.00011642,2]
[351290715,1738506623825,-500.0,0.00011642,2]
[351290716,1738506623858,-500.0,0.00011642,2]
[351290717,1738506623895,-500.0,0.00011642,2]
[351290718,1738506623937,-601.63,0.00011642,2]
[351290719,1738506623977,-1357.53,0.00011642,2]
[351290720,1738506624014,-225.88,0.00011642,2]
[351290721,1738506624049,-282.16,0.00011642,2]
[351290722,1738506624083,-500.0,0.00011642,2]
[351290723,1738506624123,-500.0,0.00011642,2]
[351290724,1738506624161,-500.0,0.00011642,2]
[351290725,1738506624197,-500.0,0.00011642,2]
[351290726,1738506624235,-500.0,0.00011642,2]
[351290727,1738506624268,-500.0,0.00011642,2]
[351290728,1738506624303,-500.0,0.00011642,2]
[351290729,1738506624338,-500.0,0.00011642,2]
[351290730,1738506624371,-478.15,0.00011642,2]
[351290731,1738506624406,-500.0,0.00011642,2]
[351290732,1738506624440,-500.0,0.00011642,2]
[351290733,1738506624474,-500.0,0.00011642,2]
[351290734,1738506624512,-500.0,0.00011642,2]
[351290735,1738506624547,-1058.01,0.00011642,2]
[351290736,1738506624582,-3099.37,0.00011642,2]
[351290737,1738506624617,-500.0,0.00011642,2]
[351290738,1738506624651,-500.0,0.00011642,2]
[351290739,1738506624690,-500.0,0.00011642,2]
[351290740,1738506624725,-179.22,0.00011642,2]
[351290741,1738506624766,-500.0,0.00011642,2]
[351290742,1738506624809,-500.0,0.00011642,2]
[351290743,1738506624844,-500.0,0.00011643,2]
[351290744,1738506624880,-608.53,0.00011643,2]
[351290745,1738506624919,-500.0,0.00011643,2]
[351290746,1738506624954,-570.27024836,0.00011643,2]
[351290747,1738506624992,-573.01,0.00011643,2]
[351290748,1738506625028,-500.0,0.00011643,2]
[351290749,1738506625063,-500.0,0.00011643,2]
[351290750,1738506625101,-500.0,0.00011643,2]
[351290751,1738506625136,-500.0,0.00011643,2]
[351290752,1738506625172,-500.0,0.00011643,2]
[351290753,1738506625209,-500.0,0.00011643,2]
[351290754,1738506625244,-500.0,0.00011643,2]
[351290755,1738506625280,-1447.89,0.00011643,2]
[351290756,1738506625318,-1735.29,0.00011643,2]
[351290757,1738506625353,-2420.33,0.00011643,2]
[351290758,1738506625390,-500.0,0.00011643,2]
[351290759,1738506625426,-168.11014655,0.00011643,2]
[351290760,1738506625460,-500.0,0.00011643,2]
[351290761,1738506625496,-563.38,0.00011643,2]
[351290762,1738506625531,-500.0,0.00011643,2]
[351290763,1738506625567,-500.0,0.00011643,2]
[351290764,1738506625604,-500.0,0.00011643,2]
[351290765,1738506625641,-560.6,0.00011643,2]
[351290766,1738506625683,-500.0,0.00011643,2]
[351290767,1738506625720,-799.65,0.00011643,2]
[351290768,1738506625755,-500.0,0.00011643,2]
[351290769,1738506625791,-1270.8,0.00011643,2]
[351290770,1738506625828,-500.0,0.00011643,2]
[351290771,1738506625863,-485.36,0.00011643,2]
[351290772,1738506625898,-500.0,0.00011643,2]
[351290773,1738506625933,-500.0,0.00011643,2]
[351290774,1738506625970,-167.10749512,0.00011643,2]
[351290775,1738506626006,-398.38,0.00011643,2]
[351290776,1738506626042,-500.0,0.00011643,2]
[351290777,1738506626078,-231.3,0.00011643,2]
[351290778,1738506626113,-1134.07,0.00011643,2]
[351290779,1738506626148,-369.12,0.00011643,2]
[351290780,1738506626183,-192.956098,0.00011643,2]
[351290781,1738506626218,-500.0,0.00011643,2]
[351290782,1738506626253,-500.0,0.00011643,2]
[351290783,1738506626288,-249.229309,0.00011643,2]
[351290784,1738506626324,-500.0,0.00011643,2]
[351290785,1738506626358,-994.5,0.00011643,2]
[351290786,1738506626393,-389.27248951,0.00011643,2]
[351290787,1738506626428,-500.0,0.00011643,2]
[351290788,1738506626464,-500.0,0.00011643,2]
[351290789,1738506626500,-500.0,0.00011643,2]
[351290790,1738506626541,-573.28,0.00011643,2]
[351290791,1738506626579,-500.0,0.00011643,2]
[351290792,1738506626617,-500.0,0.00011643,2]
[351290793,1738506626656,-512.38,0.00011643,2]
[351290794,1738506626698,-1228.88,0.00011643,2]
[351290795,1738506626735,-2271.2,0.00011643,2]
[351290796,1738506626769,-546.59281226,0.00011643,2]
[351290797,1738506626807,-536.3,0.00011643,2]
[351290798,1738506626844,-265.9,0.00011643,2]
[351290799,1738506626880,-507.77603148,0.00011643,2]
[351290800,1738506626922,-500.0,0.00011643,2]
[351290801,1738506626960,-4077.82,0.00011643,2]
[351290802,1738506626998,-896.32,0.00011643,2]
[351290803,1738506627033,-697.23,0.00011643,2]
[351290804,1738506627069,-500.0,0.00011643,2]
[351290805,1738506627108,-1121.42,0.00011643,2]
[351290806,1738506627150,-473.94,0.00011643,2]
[351290807,1738506627187,-500.0,0.00011643,2]
[351290808,1738506627223,-500.0,0.00011643,2]
[351290809,1738506627263,-500.0,0.00011643,2]
[351290810,1738506627303,-500.0,0.00011643,2]
[351290811,1738506627346,-583.58,0.00011643,2]
[351290812,1738506627382,-500.0,0.00011643,2]
[351290813,1738506627421,-601.64,0.00011643,2]
[351290814,1738506627457,-3116.64,0.00011643,2]
[351290815,1738506627493,-500.0,0.00011643,2]
[351290816,1738506627529,-411.34,0.00011643,2]
[351290817,1738506627810,-5856.03,0.00011643,2]
[351290818,1738506627845,-500.0,0.00011643,2]
[351290819,1738506627883,-331.54,0.00011643,2]
[351290820,1738506627923,-500.0,0.00011643,2]
[351290821,1738506627961,-1571.16,0.00011643,2]
[351290822,1738506627999,-500.0,0.00011643,2]
[351290823,1738506628034,-500.0,0.00011643,2]
[351290824,1738506628082,-500.0,0.00011643,2]
[351290825,1738506628119,-2437.04,0.00011643,2]
[351290826,1738506628155,-535.97,0.00011643,2]
[351290827,1738506628193,-500.0,0.00011643,2]
[351290828,1738506628228,-500.0,0.00011643,2]
[351290829,1738506628264,-500.0,0.00011643,2]
[351290830,1738506628298,-500.0,0.00011643,2]
[351290831,1738506628334,-500.0,0.00011643,2]
[351290832,1738506628373,-500.0,0.00011643,2]
[351290833,1738506628411,-500.0,0.00011643,2]
[351290834,1738506628451,-1216.64,0.00011643,2]
[351290835,1738506628493,-866.77,0.00011643,2]
[351290836,1738506628533,-1044.03,0.00011643,2]
[351290837,1738506628571,-500.0,0.00011643,2]
[351290838,1738506628610,-500.0,0.00011643,2]
[351290839,1738506628647,-500.0,0.00011643,2]
[351290840,1738506628685,-500.0,0.00011643,2]
[351290841,1738506628725,-500.0,0.00011643,2]
[351290842,1738506628764,-500.0,0.00011643,2]
[351290843,1738506628804,-500.0,0.00011643,2]
[351290844,1738506628843,-585.4,0.00011643,2]
[351290845,1738506628880,-500.0,0.00011643,2]
[351290846,1738506628922,-500.0,0.00011643,2]
[351290847,1738506628961,-733.59,0.00011643,2]
[351290848,1738506628998,-941.22,0.00011643,2]
[351290849,1738506629035,-351.93,0.00011643,2]
[351290850,1738506629072,-563.21,0.00011643,2]
[351290851,1738506629106,-500.0,0.00011643,2]
[351290852,1738506629142,-500.0,0.00011643,2]
[351290853,1738506629179,-649.28,0.00011643,2]
[351290854,1738506629212,-500.0,0.00011643,2]
[351290855,1738506629247,-1350.5,0.00011643,2]
[351290856,1738506629283,-800.62,0.00011643,2]
[351290857,1738506629316,-176.52,0.00011643,2]
[351290858,1738506629351,-500.0,0.00011643,2]
[351290859,1738506629385,-500.0,0.00011643,2]
[351290860,1738506629419,-500.0,0.00011643,2]
[351290861,1738506629456,-6658.58,0.00011643,2]
[351290862,1738506629492,-500.0,0.00011643,2]
[351290863,1738506629526,-500.0,0.00011643,2]
[351290864,1738506629562,-500.0,0.00011643,2]
[351290865,1738506629597,-500.0,0.00011643,2]
[351290866,1738506629633,-500.0,0.00011643,2]
[351290867,1738506629669,-500.0,0.00011643,2]
[351290868,1738506629706,-500.0,0.00011643,2]
[351290869,1738506629743,-500.0,0.00011643,2]
[351290870,1738506629779,-169.71454666,0.00011643,2]
[351290871,1738506629815,-955.04,0.00011643,2]
[351290872,1738506629852,-594.87,0.00011643,2]
[351290873,1738506629887,-3582.4,0.00011643,2]
[351290874,1738506629927,-500.0,0.00011643,2]
[351290875,1738506629962,-500.0,0.00011643,2]
[351290876,1738506629999,-500.0,0.00011643,2]
[351290877,1738506630037,-500.0,0.00011643,2]
[351290878,1738506630075,-500.0,0.00011643,2]
[351290879,1738506630111,-603.39,0.00011643,2]
[351290880,1738506630147,-500.0,0.00011643,2]
[351290881,1738506630180,-7957.34,0.00011643,2]
[351290882,1738506630216,-500.0,0.00011643,2]
[351290883,1738506630253,-762.65,0.00011643,2]
[351290884,1738506630288,-500.0,0.00011643,2]
[351290885,1738506630324,-1262.26,0.00011643,2]
[351290886,1738506630360,-500.0,0.00011643,2]
[351290887,1738506630397,-530.19,0.00011643,2]
[351290888,1738506630433,-500.0,0.00011643,2]
[351290889,1738506630471,-500.0,0.00011643,2]
[351290890,1738506630507,-534.35,0.00011643,2]
[351290891,1738506630546,-606.59,0.00011643,2]
[351290892,1738506630583,-500.0,0.00011643,2]
[351290893,1738506630621,-500.0,0.00011643,2]
[351290894,1738506630659,-1593.86,0.00011643,2]
[351290895,1738506630699,-500.0,0.00011643,2]
[351290896,1738506630740,-500.0,0.00011643,2]
[351290897,1738506630776,-500.0,0.00011643,2]
[351290898,1738506630813,-2238.72,0.00011643,2]
[351290899,1738506630847,-1312.59,0.00011643,2]
[351290900,1738506630881,-500.0,0.00011643,2]
[351290901,1738506630919,-500.0,0.00011643,2]
[351290902,1738506630956,-704.04,0.00011643,2]
[351290903,1738506630995,-1575.06,0.00011643,2]
[351290904,1738506631028,-500.0,0.00011643,2]
[351290905,1738506631062,-1446.45321753,0.00011666,2]
[351290906,1738506631095,-16324.55280494,0.00011688,2]
[351290907,1738506631129,-800.0,0.000117,4]
[351290908,1738506631165,-551.60242383,0.00011779,2]
[351290909,1738506631205,-500.0,0.00011779,2]
[351290910,1738506631242,-248.4,0.00011779,2]
[351290911,1738506631276,-500.0,0.00011779,2]
[351290912,1738506631310,-500.0,0.00011779,2]
[351290913,1738506631346,-278.98,0.00011779,2]
[351290914,1738506631380,-500.0,0.00011779,2]
[351290915,1738506631416,-168.31,0.00011779,2]
[351290916,1738506631455,-500.0,0.00011779,2]
[351290917,1738506631489,-331.80661785,0.00011779,2]
[351290918,1738506631524,-500.0,0.00011779,2]
[351290919,1738506631560,-500.0,0.00011779,2]
[351290920,1738506631596,-500.0,0.00011779,2]
[351290921,1738506631632,-500.0,0.00011779,2]
[351290922,1738506631673,-548.07,0.00011779,2]
[351290923,1738506631708,-500.0,0.00011779,2]
[351290924,1738506631743,-1169.34,0.00011779,2]
[351290925,1738506631779,-500.0,0.00011779,2]
[351290926,1738506631813,-500.0,0.00011779,2]
[351290927,1738506631849,-648.83,0.00011779,2]
[351290928,1738506631885,-507.49,0.00011779,2]
[351290929,1738506631928,-500.0,0.00011779,2]
[351290930,1738506631967,-500.0,0.00011779,2]
[351290931,1738506632005,-500.0,0.00011779,2]
[351290932,1738506632039,-500.0,0.00011779,2]
[351290933,1738506632077,-500.0,0.00011779,2]
[351290934,1738506632115,-500.0,0.00011779,2]
[351290937,1738506632152,-500.0,0.00011779,2]
[351290943,1738506632189,-383.72,0.00011779,2]
[351290947,1738506632226,-500.0,0.00011779,2]
[351290951,1738506632264,-500.0,0.00011779,2]
[351290952,1738506632302,-500.0,0.00011779,2]
[351290953,1738506632339,-500.0,0.00011779,2]
[351290958,1738506632376,-500.0,0.00011779,2]
[351290959,1738506632414,-601.63,0.00011779,2]
[351290960,1738506632458,-1357.53,0.00011779,2]
[351290961,1738506632499,-500.0,0.00011779,2]
[351290962,1738506632538,-500.0,0.00011779,2]
[351290963,1738506632579,-500.0,0.00011779,2]
[351290964,1738506632616,-500.0,0.00011779,2]
[351290965,1738506632653,-581.44,0.00011779,2]
[351290966,1738506632691,-500.0,0.00011779,2]
[351290967,1738506632729,-401.14,0.00011779,2]
[351290968,1738506632768,-500.0,0.00011779,2]
[351290969,1738506632805,-500.0,0.00011779,2]
[351290970,1738506632844,-500.0,0.00011779,2]
[351290971,1738506632881,-1058.01,0.00011779,2]
[351290972,1738506632919,-3099.37,0.00011779,2]
[351290977,1738506632959,-500.0,0.00011779,2]
[351290979,1738506632995,-500.0,0.00011779,2]
[351290980,1738506633033,-526.21,0.00011779,2]
[351290981,1738506633069,-500.0,0.00011779,2]
[351290982,1738506633105,-275.67,0.00011779,2]
[351290983,1738506633141,-500.0,0.00011779,2]
[351290984,1738506633178,-464.58868833,0.0001178,2]
[351290985,1738506633213,-608.53,0.0001178,2]
[351290986,1738506633249,-500.0,0.0001178,2]
[351290987,1738506633284,-573.01,0.0001178,2]
[351290988,1738506633531,-500.0,0.0001178,2]
[351290989,1738506633569,-500.0,0.0001178,2]
[351290990,1738506633605,-569.48,0.0001178,2]
[351290991,1738506633642,-500.0,0.0001178,2]
[351290992,1738506633681,-500.0,0.0001178,2]
[351290993,1738506633721,-500.0,0.0001178,2]
[351290994,1738506633759,-338.82,0.0001178,2]
[351290995,1738506633798,-1447.89,0.0001178,2]
[351290996,1738506633835,-1735.29,0.0001178,2]
[351290997,1738506633875,-2420.33,0.0001178,2]
[351290998,1738506633913,-500.0,0.0001178,2]
[351290999,1738506633957,-500.0,0.0001178,2]
[351291000,1738506633994,-618.59,0.0001178,2]
[351291001,1738506634032,-500.0,0.0001178,2]
[351291002,1738506634068,-500.0,0.0001178,2]
[351291003,1738506634104,-500.0,0.0001178,2]
[351291004,1738506634138,-799.65,0.0001178,2]
[351291005,1738506634177,-500.0,0.0001178,2]
[351291006,1738506634212,-1270.8,0.0001178,2]
[351291007,1738506634248,-500.0,0.0001178,2]
[351291008,1738506634283,-500.0,0.0001178,2]
[351291009,1738506634317,-500.0,0.0001178,2]